fUST/lending_fUST_20240228
["ID","MTS","AMOUNT","RATE_DAILY","PERIOD"]
[315554060,1709125835519,-1047.09554643,0.00019361,2]
[315554061,1709125835529,-1047.09554643,0.00019361,2]
[315554062,1709125835539,-1047.09554643,0.00019361,2]
[315554063,1709125835550,-1047.09554643,0.00019361,2]
[315554064,1709125835560,-1047.09554643,0.00019361,2]
[315554065,1709125835569,-1047.09554643,0.00019361,2]
[315554066,1709125835579,-1047.09554643,0.00019361,2]
[315554067,1709125835589,-1047.09554643,0.00019361,2]
[315554068,1709125835598,-1047.09554643,0.00019361,2]
[315554069,1709125835607,-1047.09554643,0.00019361,2]
[315554070,1709125835617,-1047.09554643,0.00019361,2]
[315554071,1709125835626,-1047.09554643,0.00019361,2]
[315554072,1709125835635,-1047.09554643,0.00019361,2]
[315554073,1709125835645,-1047.09554643,0.00019361,2]
[315554074,1709125835654,-1047.09554643,0.00019361,2]
[315554075,1709125835664,-1047.09554643,0.00019361,2]
[315554076,1709125835673,-500.0,0.00019361,2]
[315554077,1709125835682,-1047.09554643,0.00019361,2]
[315554078,1709125835691,-500.0,0.00019361,2]
[315554079,1709125835701,-1047.09554643,0.00019361,2]
[315554080,1709125835710,-500.0,0.00019361,2]
[315554081,1709125835720,-1047.09554643,0.00019361,2]
[315554082,1709125835730,-500.0,0.00019361,2]
[315554083,1709125835739,-1047.09554643,0.00019361,2]
[315554084,1709125835751,-500.0,0.00019361,2]
[315554085,1709125835761,-1047.09554643,0.00019361,2]
[315554086,1709125835772,-500.0,0.00019361,2]
[315554087,1709125835785,-1047.09554643,0.00019361,2]
[315554088,1709125835795,-500.0,0.00019361,2]
[315554089,1709125835804,-1047.09554643,0.00019361,2]
[315554090,1709125835814,-500.0,0.00019361,2]
[315554091,1709125835828,-500.0,0.00019361,2]
[315554092,1709125835837,-1047.09554643,0.00019361,2]
[315554093,1709125835846,-500.0,0.00019361,2]
[315554094,1709125835855,-500.0,0.00019361,2]
[315554095,1709125835864,-1047.09554643,0.00019361,2]
[315554096,1709125835873,-500.0,0.00019361,2]
[315554097,1709125835883,-500.0,0.00019361,2]
[315554098,1709125835892,-1047.09554643,0.00019361,2]
[315554099,1709125835902,-500.0,0.00019361,2]
[315554100,1709125835911,-1047.09554643,0.00019361,2]
[315554101,1709125835920,-500.0,0.00019361,2]
[315554102,1709125835929,-1047.09554643,0.00019361,2]
[315554103,1709125835938,-500.0,0.00019361,2]
[315554104,1709125835947,-500.0,0.00019361,2]
[315554105,1709125835956,-1047.09554643,0.00019361,2]
[315554106,1709125835965,-500.0,0.00019361,2]
[315554107,1709125835974,-572.78332532,0.00019361,2]
[315554108,1709125835983,-500.0,0.00019361,2]
[315554109,1709125835992,-500.0,0.00019361,2]
[315554110,1709125836004,-500.0,0.00019361,2]
[315554111,1709125836013,-500.0,0.00019361,2]
[315554112,1709125836021,-500.0,0.00019361,2]
[315554113,1709125836030,-1047.0955465,0.00019361,2]
[315554114,1709125836039,-1047.0955465,0.00019361,2]
[315554115,1709125836048,-276000.0,0.00019362,2]
[315554116,1709125836057,-500.0,0.000194,8]
[315554117,1709125836066,-500.0,0.00019406,2]
[315554118,1709125836075,-500.0,0.00019452,2]
[315554119,1709125836085,-639.13850757,0.00019452,2]
[315554120,1709125836094,-501.48262876,0.00019452,2]
[315554121,1709125836103,-500.0,0.00019452,2]
[315554122,1709125836112,-619.68506579,0.00019452,2]
[315554123,1709125836121,-500.0,0.00019452,2]
[315554124,1709125836130,-501.69003324,0.00019452,2]
[315554125,1709125836139,-500.56435264,0.00019452,2]
[315554126,1709125836149,-500.0,0.00019452,2]
[315554127,1709125836158,-584.56806029,0.00019452,2]
[315554128,1709125836167,-504.12794573,0.00019452,2]
[315554129,1709125836177,-500.0,0.00019452,2]
[315554130,1709125836186,-500.0,0.00019452,2]
[315554131,1709125836196,-500.0,0.00019452,2]
[315554132,1709125836205,-500.0,0.00019452,2]
[315554133,1709125836215,-562.16,0.00019452,2]
[315554134,1709125836225,-500.0,0.00019452,2]
[315554135,1709125836235,-501.35296597,0.00019452,2]
[315554136,1709125836244,-500.0,0.00019452,2]
[315554137,1709125836256,-607.75992688,0.00019452,2]
[315554138,1709125836266,-500.0,0.00019452,2]
[315554139,1709125836276,-642.41,0.00019452,2]
[315554140,1709125836287,-501.12834095,0.00019452,2]
[315554141,1709125836297,-466.15790035,0.00019452,2]
[315554142,1709125836307,-553.25,0.00019452,2]
[315554143,1709125836316,-500.0,0.00019452,2]
[315554144,1709125836326,-500.0,0.00019452,2]
[315554145,1709125836336,-500.0,0.00019452,2]
[315554146,1709125836346,-500.0,0.00019452,2]
[315554147,1709125836356,-500.74753847,0.00019452,2]
[315554148,1709125836366,-501.08219983,0.00019452,2]
[315554149,1709125836376,-500.0,0.00019452,2]
[315554150,1709125836389,-500.0,0.00019452,2]
[315554151,1709125836399,-500.0,0.00019452,2]
[315554152,1709125836408,-8619.13,0.00019452,2]
[315554153,1709125836418,-500.0,0.00019452,2]
[315554154,1709125836428,-500.0,0.00019452,2]
[315554155,1709125836439,-1279.81,0.00019452,2]
[315554156,1709125836449,-501.16619384,0.00019452,2]
[315554157,1709125836459,-500.0,0.00019452,2]
[315554158,1709125836470,-501.27283164,0.00019452,2]
[315554159,1709125836480,-500.0,0.00019452,2]
[315554160,1709125836490,-2648.46,0.00019452,2]
[315554161,1709125836504,-500.0,0.00019452,2]
[315554162,1709125836514,-500.0,0.00019452,2]
[315554163,1709125836524,-500.0,0.00019452,2]
[315554164,1709125836534,-540.79,0.00019452,2]
[315554165,1709125836545,-500.0,0.00019452,2]
[315554166,1709125836556,-500.0,0.00019452,2]
[315554167,1709125836566,-500.0,0.00019452,2]
[315554168,1709125836576,-533.67,0.00019452,2]
[315554169,1709125836585,-503.02160777,0.00019452,2]
[315554170,1709125836595,-500.0,0.00019452,2]
[315554171,1709125836606,-500.0,0.00019452,2]
[315554172,1709125836616,-500.77081773,0.00019452,2]
[315554173,1709125836626,-502.04607468,0.00019452,2]
[315554174,1709125836636,-500.0,0.00019452,2]
[315554175,1709125836647,-500.0,0.00019452,2]
[315554176,1709125836658,-640.51,0.00019452,2]
[315554177,1709125836668,-179.84917799,0.00019452,2]
[315554178,1709125836678,-255.86656841,0.00019452,2]
[315554179,1709125836688,-1262.22,0.00019452,2]
[315554180,1709125836698,-893.02,0.00019452,2]
[315554181,1709125836708,-500.0,0.00019452,2]
[315554182,1709125836718,-500.0,0.00019452,2]
[315554183,1709125836729,-500.0,0.00019452,2]
[315554184,1709125836739,-500.0,0.00019452,2]
[315554185,1709125836749,-500.0,0.00019452,2]
[315554186,1709125836843,-500.0,0.00019452,2]
[315554187,1709125836866,-500.0,0.00019452,2]
[315554188,1709125836876,-500.0,0.00019452,2]
[315554189,1709125836886,-500.0,0.00019452,2]
[315554190,1709125836896,-1112.94,0.00019452,2]
[315554191,1709125836907,-617.71,0.00019452,2]
[315554192,1709125836918,-7590.49,0.00019452,2]
[315554193,1709125836928,-500.0,0.00019452,2]
[315554194,1709125836937,-203.42282125,0.00019452,2]
[315554195,1709125836946,-500.0,0.00019452,2]
[315554196,1709125836957,-719.14,0.00019452,2]
[315554197,1709125836966,-500.0,0.00019452,2]
[315554198,1709125836977,-991.44,0.00019452,2]
[315554199,1709125836987,-437.78836776,0.00019452,2]
[315554200,1709125836997,-500.0,0.00019452,2]
[315554201,1709125837011,-3785.19,0.00019452,2]
[315554202,1709125837021,-500.0,0.00019452,2]
[315554203,1709125837030,-500.0,0.00019452,2]
[315554204,1709125837040,-500.0,0.00019452,2]
[315554205,1709125837050,-1406.5,0.00019452,2]
[315554206,1709125837060,-500.0,0.00019452,2]
[315554207,1709125837069,-500.0,0.00019452,2]
[315554208,1709125837079,-504.30564958,0.00019452,2]
[315554209,1709125837089,-500.0,0.00019452,2]
[315554210,1709125837098,-500.0,0.00019452,2]
[315554211,1709125837107,-1258.42,0.00019452,2]
[315554212,1709125837117,-646.60151528,0.00019452,2]
[315554213,1709125837127,-500.9669518,0.00019452,2]
[315554214,1709125837136,-500.0,0.00019452,2]
[315554215,1709125837145,-1646.77,0.00019452,2]
[315554216,1709125837154,-502.36151926,0.00019452,2]
[315554217,1709125837163,-172909.02889151,0.00019462,2]
[315554218,1709125837173,-246.457202,0.00019462,2]
[315554219,1709125837182,-246.457202,0.00019462,2]
[315554220,1709125837191,-2508.98132854,0.00019469,2]
[315554221,1709125837200,-8232.02435619,0.0001949,2]
[315554222,1709125837209,-166.666666,0.00019627,2]
[315554223,1709125837218,-500.0,0.00019635,2]
[315554224,1709125837228,-2508.98132854,0.00019648,2]
[315554225,1709125837237,-34485.78680813,0.00019683,2]
[315554226,1709125837247,-234.77151429,0.00019685,2]
[315554227,1709125837258,-500.0,0.00019685,2]
[315554228,1709125837268,-500.0,0.00019685,2]
[315554229,1709125837277,-500.0,0.00019685,2]
[315554230,1709125837288,-1108.48,0.00019685,2]
[315554231,1709125837297,-528.36,0.00019685,2]
[315554232,1709125837307,-862.7,0.00019685,2]
[315554233,1709125837317,-500.0,0.00019685,2]
[315554234,1709125837326,-500.0,0.00019685,2]
[315554235,1709125837335,-349.35070443,0.00019686,2]
[315554236,1709125837344,-500.0,0.00019686,2]
[315554237,1709125837353,-500.0,0.00019686,2]
[315554238,1709125837362,-500.0,0.00019686,2]
[315554239,1709125837372,-500.0,0.00019686,2]
[315554240,1709125837381,-500.0,0.00019686,2]
[315554241,1709125837390,-500.0,0.00019686,2]
[315554242,1709125837400,-500.0,0.00019686,2]
[315554243,1709125837409,-500.0,0.00019686,2]
[315554244,1709125837420,-501.05951508,0.00019686,2]
[315554245,1709125837429,-431.87225805,0.00019686,2]
[315554246,1709125837439,-500.0,0.00019686,2]
[315554247,1709125837448,-501.44612829,0.00019686,2]
[315554248,1709125837458,-500.58628825,0.00019686,2]
[315554249,1709125837467,-500.71875309,0.00019686,2]
[315554250,1709125837476,-166.90503507,0.00019686,2]
[315554251,1709125837486,-501.27459102,0.00019686,2]
[315554252,1709125837495,-500.31728288,0.00019686,2]
[315554253,1709125837506,-500.0,0.00019686,2]
[315554254,1709125837515,-500.0,0.00019686,2]
[315554255,1709125837525,-500.0,0.00019686,2]
[315554257,1709125837534,-500.0,0.00019686,2]
[315554259,1709125837543,-500.88498887,0.00019686,2]
[315554261,1709125837553,-501.68481277,0.00019686,2]
[315554263,1709125837562,-501.14321281,0.00019686,2]
[315554266,1709125837571,-500.64234869,0.00019686,2]
[315554269,1709125837581,-404.94508815,0.00019686,2]
[315554272,1709125837589,-500.56435083,0.00019686,2]
[315554275,1709125837599,-500.37566071,0.00019686,2]
[315554277,1709125837608,-500.0,0.00019686,2]
[315554279,1709125837618,-500.0,0.00019686,2]
[315554281,1709125837627,-500.0,0.00019686,2]
[315554282,1709125837636,-500.0,0.00019686,2]
[315554283,1709125837645,-500.35028517,0.00019686,2]
[315554285,1709125837655,-500.0,0.00019686,2]
[315554287,1709125837664,-500.0,0.00019686,2]
[315554289,1709125837673,-500.0,0.00019686,2]
[315554291,1709125837682,-500.88164084,0.00019686,2]
[315554293,1709125837691,-501.29414011,0.00019686,2]
[315554295,1709125837701,-500.96270712,0.00019686,2]
[315554297,1709125837710,-501.08315617,0.00019686,2]
[315554299,1709125837719,-500.72011047,0.00019686,2]
[315554301,1709125837729,-500.5539588,0.00019686,2]
[315554303,1709125837738,-501.20083192,0.00019686,2]
[315554305,1709125837748,-500.0,0.00019686,2]
[315554306,1709125837759,-500.0,0.00019686,2]
[315554308,1709125837768,-500.0,0.00019686,2]
[315554310,1709125837783,-500.0,0.00019686,2]
[315554312,1709125837792,-500.0,0.00019686,2]
[315554313,1709125837802,-501.36180209,0.00019686,2]
[315554315,1709125837811,-500.0,0.00019686,2]
[315554316,1709125837823,-501.6938128,0.00019686,2]
[315554318,1709125837833,-500.0,0.00019686,2]
[315554320,1709125837842,-500.0,0.00019686,2]
[315554321,1709125837851,-501.83271233,0.00019686,2]
[315554322,1709125837862,-500.0,0.00019686,2]
[315554324,1709125837872,-500.0,0.00019686,2]
[315554326,1709125837882,-500.0,0.00019686,2]
[315554327,1709125837892,-501.63733233,0.00019686,2]
[315554329,1709125837901,-500.0,0.00019686,2]
[315554331,1709125837910,-433.38344935,0.00019686,2]
[315554333,1709125837919,-501.65135299,0.00019686,2]
[315554335,1709125837929,-500.0,0.00019686,2]
[315554337,1709125837938,-501.74495737,0.00019686,2]
[315554339,1709125837947,-500.0,0.00019686,2]
[315554341,1709125837956,-500.0,0.00019686,2]
[315554343,1709125837965,-500.0,0.00019686,2]
[315554345,1709125837974,-647.81541511,0.00019686,2]
[315554347,1709125837984,-501.04474279,0.00019686,2]
[315554349,1709125837993,-7.46962871,0.00019686,2]
[315554607,1709125840715,-743.29778126,0.00015995,2]
[315554610,1709125840726,-1182.64950813,0.00015995,2]
[315554612,1709125840736,-8007.23444251,0.00017997,2]
[315554614,1709125840746,-155.15515516,0.00017997,2]
[315554616,1709125840756,-1863.17330942,0.00018295,2]
[315554619,1709125840765,-7900.87,0.00019178,2]
[315554621,1709125840774,-1225.94,0.00019178,2]
[315554623,1709125840785,-7900.87,0.00019452,2]
[315554625,1709125840794,-8232.02435619,0.00019647,2]
[315554627,1709125840803,-493.38575027,0.00019686,2]
[315554628,1709125840812,-642.92672807,0.00019686,2]
[315554630,1709125840829,-500.0,0.00019686,2]
[315554633,1709125840839,-500.0,0.00019686,2]
[315554634,1709125840849,-500.0,0.00019686,2]
[315554636,1709125840858,-500.0,0.00019686,2]
[315554638,1709125840867,-500.0,0.00019686,2]
[315554640,1709125840876,-419.58407917,0.00019686,2]
[315554642,1709125840885,-582.02334854,0.00019686,2]
[315554644,1709125840895,-500.68483796,0.00019686,2]
[315554646,1709125840904,-500.0,0.00019686,2]
[315554658,1709125841011,-500.0,0.00019686,2]
[315554660,1709125841022,-500.0,0.00019686,2]
[315554663,1709125841036,-639.32477302,0.00019686,2]
[315554665,1709125841047,-500.87948269,0.00019686,2]
[315554667,1709125841057,-500.0,0.00019686,2]
[315554668,1709125841065,-500.0,0.00019686,2]
[315554671,1709125841075,-500.0,0.00019686,2]
[315554673,1709125841084,-500.0,0.00019686,2]
[315554675,1709125841093,-500.0,0.00019686,2]
[315554677,1709125841103,-501.12951574,0.00019686,2]
[315554679,1709125841113,-500.0,0.00019686,2]
[315554681,1709125841122,-300.2656957,0.00019686,2]
[315554683,1709125841132,-500.0,0.00019686,2]
[315554685,1709125841142,-500.0,0.00019686,2]
[315554687,1709125841151,-317.76956932,0.00019686,2]
[315554689,1709125841160,-501.43638075,0.00019686,2]
[315554691,1709125841170,-475.3619383,0.00019686,2]
[315554693,1709125841179,-501.08288519,0.00019686,2]
[315554695,1709125841188,-501.01733503,0.00019686,2]
[315554697,1709125841197,-500.0,0.00019686,2]
[315554699,1709125841207,-503.05940918,0.00019686,2]
[315554700,1709125841216,-500.0,0.00019686,2]
[315554702,1709125841225,-504.02330497,0.00019686,2]
[315554704,1709125841234,-500.0,0.00019686,2]
[315554707,1709125841245,-481.90569177,0.00019686,2]
[315554709,1709125841256,-151.0,0.00019686,2]
[315554710,1709125841266,-587.89907611,0.00019686,2]
[315554712,1709125841276,-501.38620504,0.00019686,2]
[315554714,1709125841285,-500.0,0.00019686,2]
[315554716,1709125841294,-500.0,0.00019686,2]
[315554718,1709125841304,-500.0,0.00019686,2]
[315554720,1709125841312,-500.0,0.00019686,2]
[315554722,1709125841322,-246.457202,0.00019686,2]
[315554724,1709125841330,-246.457202,0.00019686,2]
[315554726,1709125841339,-246.457202,0.00019686,2]
[315554727,1709125841348,-246.457202,0.00019686,2]
[315554728,1709125841357,-500.0,0.00019687,2]
[315554729,1709125841366,-500.0,0.00019687,2]
[315554730,1709125841374,-500.74603547,0.00019687,2]
[315554731,1709125841383,-500.0,0.00019687,2]
[315554733,1709125841392,-500.0,0.00019687,2]
[315554735,1709125841401,-500.0,0.00019687,2]
[315554737,1709125841410,-500.54697198,0.00019687,2]
[315554739,1709125841419,-501.12522508,0.00019687,2]
[315554741,1709125841428,-156.16885842,0.00019687,2]
[315554743,1709125841438,-620.00011654,0.00019687,2]
[315554745,1709125841447,-500.0,0.00019726,2]
[315554747,1709125841456,-500.0,0.00019726,2]
[315554749,1709125841465,-500.0,0.00019726,2]
[315554751,1709125841475,-500.0,0.00019726,2]
[315554753,1709125841484,-642.41,0.00019726,2]
[315554755,1709125841493,-553.25,0.00019726,2]
[315554757,1709125841502,-500.0,0.00019726,2]
[315554759,1709125841513,-500.0,0.00019726,2]
[315554761,1709125841522,-500.0,0.00019726,2]
[315554763,1709125841531,-540.79,0.00019726,2]
[315554765,1709125841541,-500.0,0.00019726,2]
[315554767,1709125841550,-533.67,0.00019726,2]
[315554769,1709125841559,-504.2,0.00019726,2]
[315554770,1709125841569,-500.0,0.00019726,2]
[315554772,1709125841580,-640.51,0.00019726,2]
[315554775,1709125841590,-1262.22,0.00019726,2]
[315554776,1709125841599,-893.02,0.00019726,2]
[315554778,1709125841608,-500.0,0.00019726,2]
[315554780,1709125841618,-500.0,0.00019726,2]
[315554782,1709125841627,-500.0,0.00019726,2]
[315554784,1709125841637,-500.0,0.00019726,2]
[315554786,1709125841646,-244.5,0.00019726,2]
[315554788,1709125841655,-500.0,0.00019726,2]
[315554791,1709125841666,-1112.94,0.00019726,2]
[315554792,1709125841677,-617.71,0.00019726,2]
[315554794,1709125841687,-7590.49,0.00019726,2]
[315554796,1709125841697,-719.14,0.00019726,2]
[315554798,1709125841708,-991.44,0.00019726,2]
[315554800,1709125841718,-500.0,0.00019726,2]
[315554803,1709125841728,-3785.19,0.00019726,2]
[315554805,1709125841739,-500.0,0.00019726,2]
[315554807,1709125841748,-500.0,0.00019726,2]
[315554809,1709125841760,-1406.5,0.00019726,2]
[315554811,1709125841770,-488.46,0.00019726,2]
[315554813,1709125841783,-1258.42,0.00019726,2]
[315554815,1709125841793,-500.0,0.00019726,2]
[315554817,1709125841802,-1646.77,0.00019726,2]
[315554819,1709125841813,-1788.60359051,0.00019726,2]
[315554822,1709125841835,-6112.26640949,0.00019726,2]
[315554824,1709125841844,-2508.98132854,0.00019827,2]
[315554826,1709125841856,-500.0,0.00019863,2]
[315554828,1709125841866,-500.0,0.00019939,2]
[315554830,1709125841876,-500.0,0.0001995,2]
[315554832,1709125841886,-500.0,0.00019959,2]
[315554834,1709125841896,-500.0,0.00019959,2]
[315554836,1709125841907,-1108.48,0.00019959,2]
[315554838,1709125841917,-528.36,0.00019959,2]
[315554840,1709125841927,-862.7,0.00019959,2]
[315554842,1709125841937,-500.0,0.00019959,2]
[315554844,1709125841948,-500.0,0.00019959,2]
[315554845,1709125841961,-246.457202,0.00019959,2]
[315554847,1709125841971,-246.457202,0.00019959,2]
[315554849,1709125841981,-500.0,0.0001996,2]
[315554851,1709125841991,-601.95546096,0.0001996,2]
[315554854,1709125842002,-500.0,0.0001996,2]
[315554855,1709125842013,-500.0,0.0001996,2]
[315554858,1709125842022,-500.0,0.0001996,2]
[315554860,1709125842031,-188.36466729,0.0001996,2]
[315554862,1709125842040,-500.62493587,0.0001996,2]
[315554863,1709125842050,-500.0,0.0001996,2]
[315554866,1709125842065,-500.0,0.0001996,2]
[315554868,1709125842075,-500.0,0.0001996,2]
[315554870,1709125842085,-500.0,0.0001996,2]
[315554872,1709125842096,-500.0,0.0001996,2]
[315554874,1709125842105,-500.0,0.0001996,2]
[315554876,1709125842115,-500.0,0.0001996,2]
[315554878,1709125842124,-500.0,0.0001996,2]
[315554880,1709125842133,-503.11212196,0.0001996,2]
[315554882,1709125842142,-500.0,0.0001996,2]
[315554884,1709125842152,-500.0,0.0001996,2]
[315554886,1709125842161,-547.86795741,0.0001996,2]
[315554888,1709125842170,-500.0,0.0001996,2]
[315554890,1709125842180,-502.48047561,0.0001996,2]
[315554892,1709125842189,-500.0,0.0001996,2]
[315554894,1709125842199,-551.4523923,0.0001996,2]
[315554896,1709125842208,-500.0,0.0001996,2]
[315554898,1709125842218,-186.93515222,0.0001996,2]
[315554900,1709125842227,-500.0,0.0001996,2]
[315554902,1709125842237,-500.0,0.0001996,2]
[315554904,1709125842247,-500.0,0.0001996,2]
[315554906,1709125842257,-500.0,0.0001996,2]
[315554907,1709125842266,-450.65957018,0.0001996,2]
[315554910,1709125842276,-361.38363759,0.00019961,2]
[315554912,1709125842288,-138.61636241,0.00019961,2]
[315554914,1709125842297,-301.75544608,0.0002,2]
[315554916,1709125842306,-329.79,0.0002,2]
[315554918,1709125842315,-642.41,0.0002,2]
[315554920,1709125842324,-553.25,0.0002,2]
[315554922,1709125842333,-246.457202,0.0002,2]
[315554924,1709125842342,-246.457202,0.0002,2]
[315554926,1709125842351,-500.0,0.0002,2]
[315554928,1709125842360,-236.92,0.0002,2]
[315554930,1709125842369,-540.79,0.0002,2]
[315554932,1709125842378,-533.67,0.0002,2]
[315554934,1709125842387,-614.64,0.0002,2]
[315554936,1709125842396,-640.51,0.0002,2]
[315554938,1709125842404,-1262.22,0.0002,2]
[315554940,1709125842413,-893.02,0.0002,2]
[315554942,1709125842422,-500.0,0.0002,2]
[315554944,1709125842431,-500.0,0.0002,2]
[315554946,1709125842440,-1112.94,0.0002,2]
[315554947,1709125842449,-617.71,0.0002,2]
[315554949,1709125842458,-7590.49,0.0002,2]
[315554952,1709125842469,-719.14,0.0002,2]
[315554954,1709125842478,-991.44,0.0002,2]
[315554956,1709125842487,-167.87459737,0.0002,2]
[315554957,1709125842496,-3785.19,0.0002,2]
[315554959,1709125842507,-1406.5,0.0002,2]
[315554961,1709125842516,-1258.42,0.0002,2]
[315554963,1709125842525,-500.0,0.0002,2]
[315554966,1709125842534,-1646.77,0.0002,2]
[315554968,1709125842544,-7900.87,0.0002,2]
[315554970,1709125842554,-823.98694278,0.00020005,2]
[315554972,1709125842563,-2508.98132854,0.00020006,2]
[315554974,1709125842573,-153.5626275,0.00020055,2]
[315554977,1709125842582,-166.666666,0.00020076,2]
[315554980,1709125842591,-500.0,0.00020092,2]
[315554983,1709125842600,-1212.90960336,0.00020164,2]
[315554986,1709125842609,-2508.98132854,0.00020184,2]
[315554989,1709125842618,-200.6348293,0.00020192,2]
[315554992,1709125842626,-153.8229705,0.00020192,2]
[315554995,1709125842635,-200.6348293,0.00020192,2]
[315554998,1709125842645,-200.4782476,0.00020192,2]
[315555000,1709125842655,-306.0,0.00020192,2]
[315555004,1709125842664,-306.0,0.00020192,2]
[315555007,1709125842675,-329.9048459,0.00020192,2]
[315555009,1709125842684,-200.6348293,0.00020192,2]
[315555010,1709125842694,-306.0,0.00020192,2]
[315555012,1709125842704,-200.6348293,0.00020192,2]
[315555015,1709125842713,-200.6348293,0.00020192,2]
[315555017,1709125842723,-153.4110428,0.00020192,2]
[315555020,1709125842732,-200.3728625,0.00020192,2]
[315555022,1709125842742,-155.19188788,0.00020199,2]
[315555025,1709125842751,-4826.13886817,0.00020199,2]
[315555027,1709125842764,-10258.60913931,0.00020199,2]
[315555029,1709125842775,-500.0,0.000202,2]
[315555032,1709125842786,-500.0,0.000202,2]
[315555034,1709125842795,-500.0,0.000202,2]
[315555036,1709125842804,-500.0,0.000202,2]
[315555038,1709125842814,-439.15612165,0.000202,2]
[315555040,1709125842825,-500.0,0.000202,2]
[315555042,1709125842834,-500.0,0.000202,2]
[315555044,1709125842843,-500.0,0.00020233,2]
[315555046,1709125842852,-500.0,0.00020233,2]
[315555048,1709125842862,-1108.48,0.00020233,2]
[315555050,1709125842872,-528.36,0.00020233,2]
[315555052,1709125842882,-862.7,0.00020233,2]
[315555054,1709125842892,-551.53581837,0.00020233,2]
[315555056,1709125842901,-500.0,0.00020233,2]
[315555058,1709125842910,-500.0,0.00020234,2]
[315555060,1709125842919,-500.0,0.00020234,2]
[315555062,1709125842928,-478.64621711,0.00020234,2]
[315555064,1709125842937,-500.0,0.00020234,2]
[315555066,1709125842946,-500.0,0.00020234,2]
[315555068,1709125842956,-500.0,0.00020234,2]
[315555070,1709125842965,-500.0,0.00020234,2]
[315555073,1709125842977,-500.0,0.00020234,2]
[315555074,1709125842986,-500.0,0.00020234,2]
[315555076,1709125842996,-500.0,0.00020234,2]
[315555078,1709125843008,-500.0,0.00020234,2]
[315555080,1709125843019,-500.0,0.00020234,2]
[315555083,1709125843030,-262.30499118,0.00020272,7]
[315555085,1709125843041,-642.41,0.00020273,2]
[315555086,1709125843050,-553.25,0.00020273,2]
[315555089,1709125843060,-246.457202,0.00020273,2]
[315555090,1709125843069,-246.457202,0.00020273,2]
[315555093,1709125843079,-500.0,0.00020273,2]
[315555094,1709125843088,-540.79,0.00020273,2]
[315555096,1709125843097,-533.67,0.00020273,2]
[315555099,1709125843106,-640.51,0.00020273,2]
[315555101,1709125843116,-1262.22,0.00020273,2]
[315555102,1709125843125,-893.02,0.00020273,2]
[315555105,1709125843135,-500.0,0.00020273,2]
[315555106,1709125843144,-500.0,0.00020273,2]
[315555108,1709125843153,-1112.94,0.00020273,2]
[315555110,1709125843162,-617.71,0.00020273,2]
[315555112,1709125843172,-7590.49,0.00020273,2]
[315555114,1709125843182,-719.14,0.00020273,2]
[315555124,1709125843273,-991.44,0.00020273,2]
[315555126,1709125843283,-3785.19,0.00020273,2]
[315555128,1709125843293,-1406.5,0.00020273,2]
[315555130,1709125843302,-1258.42,0.00020273,2]
[315555132,1709125843312,-500.0,0.00020273,2]
[315555134,1709125843321,-1646.77,0.00020273,2]
[315555136,1709125843330,-7900.87,0.00020273,2]
[315555138,1709125843339,-500.0,0.00020298,2]
[315555140,1709125843349,-500.0,0.00020298,2]
[315555142,1709125843358,-500.0,0.00020298,2]
[315555144,1709125843367,-500.0,0.00020298,2]